bitfinex/quotes_ETHUSD_20241129
["timestamp","ask_amount","ask_price","bid_price","bid_amount"]
[1732873580042,0.55,3578.5,3578.2,0.07884706]
[1732873581319,0.55,3578.5,3577.9,4.27856633]
[1732873581548,0.55,3578.5,3578.3,0.07893259]
[1732873581714,0.55,3578.5,3577.9,4.27856633]
[1732873581926,0.55,3578.5,3578.4,0.07888579]
[1732873582129,0.55,3578.5,3577.9,4.27856633]
[1732873582350,0.55,3578.5,3578.4,0.07888579]
[1732873582550,0.55,3578.5,3577.9,4.27856633]
[1732873583061,0.55,3578.5,3578.0,0.07903951]
[1732873583256,0.55,3578.5,3578.0,2.87388951]
[1732873583445,0.55,3578.7,3578.2,0.7806]
[1732873583830,0.55,3578.5,3578.3,0.07919278]
[1732873584766,0.55,3578.7,3578.3,2.87380278]
[1732873586052,0.55,3578.7,3578.3,2.87380278]
[1732873586265,0.26153669,3578.6,3578.3,2.87380278]
[1732873586567,0.55,3578.7,3578.3,2.87380278]
[1732873586763,0.26154232,3578.6,3578.3,2.87380278]
[1732873587067,0.55,3578.7,3578.3,2.87380278]
[1732873587235,0.26154775,3578.6,3578.3,2.87380278]
[1732873587570,0.55,3578.7,3578.3,2.87380278]
[1732873587776,0.26154769,3578.6,3578.3,2.87380278]
[1732873587937,3.34431,3578.7,3578.3,0.07919278]
[1732873588245,3.0560294,3578.6,3578.3,0.07919278]
[1732873588448,0.55,3578.5,3578.3,0.07919278]
[1732873588663,3.57067,3578.5,3578.3,0.07919278]
[1732873588958,2.79457,3578.4,3577.9,4.27855633]
[1732873589134,0.7762,3578.5,3577.9,4.27855633]
[1732873589329,2.79454,3578.4,3577.9,2.79492]
[1732873589734,3.34462,3578.3,3577.8,5.10503633]
[1732873590566,2.79475,3578.2,3577.6,5.05394633]
[1732873590735,2.79475,3578.2,3577.6,5.62865879]
[1732873590934,6.13915,3578.4,3577.7,2.79502]
[1732873591172,0.26168268,3578.3,3577.7,2.79502]
[1732873591472,0.55,3578.2,3577.7,2.79502]
[1732873592071,0.55,3578.2,3577.7,5.59005]
[1732873592228,0.55,3578.4,3577.8,3.69275071]
[1732873592432,0.55,3578.2,3577.8,5.17638704]
[1732873592659,3.34456,3578.4,3577.8,5.17638704]
[1732873592866,0.55,3578.2,3577.8,5.17638704]
[1732873593062,3.34456,3578.4,3577.8,5.17638704]
[1732873593255,0.26167212,3578.3,3577.8,5.17638704]
[1732873593457,0.81167212,3578.2,3577.9,3.72706195]
[1732873593659,0.55,3578.2,3577.9,3.72706195]
[1732873593881,0.55,3578.3,3577.9,3.72706195]
[1732873594035,0.26166808,3578.2,3577.9,3.72706195]
[1732873594238,0.55,3578.3,3577.9,3.72706195]
[1732873594580,0.2616918,3578.2,3577.9,3.72706195]
[1732873594796,0.55,3578.3,3577.9,3.72706195]
[1732873595072,0.26169186,3578.2,3577.9,3.72706195]
[1732873595374,0.55,3578.3,3577.9,3.72706195]
[1732873596282,3.34465,3578.3,3577.9,0.93213195]
[1732873596489,3.34465,3578.3,3577.8,2.795]
[1732873596980,0.26174899,3578.2,3577.8,2.795]
[1732873597164,3.34465,3578.3,3577.8,2.795]
[1732873597339,0.26181261,3578.2,3577.8,2.795]
[1732873597538,1.19490698,3578.5,3577.7,4.27865633]
[1732873597539,0.55,3578.4,3577.9,2.79489]
[1732873597878,0.55,3578.2,3577.9,2.79489]
[1732873598181,0.55,3578.4,3577.9,3.63723588]
[1732873598380,0.26186493,3578.3,3577.9,3.63723588]
[1732873598580,0.55,3578.2,3577.9,3.63723588]
[1732873599492,0.55,3578.3,3577.9,3.63723588]
[1732873599700,0.26190426,3578.2,3577.9,2.79489]
[1732873599855,0.55,3578.3,3577.9,2.79489]
[1732873600056,0.26190281,3578.2,3577.9,2.79489]
[1732873600358,0.26190281,3578.1,3577.7,2.79502]
[1732873600583,3.34462,3578.3,3577.7,2.79502]
[1732873600756,0.26195673,3578.2,3577.7,5.59003]
[1732873601085,0.26195673,3578.1,3577.7,2.79501]
[1732873601257,2.79471,3578.2,3577.7,2.79501]
[1732873601458,0.26200583,3578.1,3577.7,2.79501]
[1732873601686,0.55,3578.3,3577.8,2.79499]
[1732873601869,0.26200582,3578.2,3577.8,2.79499]
[1732873602091,0.26200582,3578.1,3577.6,3.5703]
[1732873602405,2.79472,3578.2,3577.7,2.79504]
[1732873602557,0.26205956,3578.1,3577.7,2.79504]
[1732873602759,2.79472,3578.2,3577.7,2.79504]
[1732873602958,0.26205913,3578.1,3577.7,2.79504]
[1732873603154,0.55,3578.4,3577.7,3.57994863]
[1732873603404,0.55,3578.2,3577.8,2.795]
[1732873603616,0.2620709,3578.1,3577.8,0.07923088]
[1732873603816,3.34477,3578.2,3577.8,0.07923088]
[1732873604100,0.26207187,3578.1,3577.8,2.79501]
[1732873604308,0.55,3578.3,3577.8,2.79501]
[1732873604604,0.26208308,3578.2,3577.9,0.07977573]
[1732873604907,0.26208308,3578.1,3577.9,0.07977573]
[1732873605209,0.55,3578.3,3577.9,0.07977573]
[1732873605508,0.26209155,3578.2,3577.9,0.07977573]
[1732873605805,0.26209359,3578.2,3577.9,0.07977573]
[1732873606106,0.26209359,3578.1,3577.9,0.07977573]
[1732873606308,0.55,3578.3,3577.9,0.07977573]
[1732873606512,0.26209377,3578.2,3577.9,0.07977573]
[1732873606811,0.26209377,3578.1,3577.9,0.07977573]
[1732873607013,0.55,3578.3,3577.9,0.07977573]
[1732873607196,0.26209391,3578.2,3578.0,2.79484]
[1732873607523,0.7762,3578.5,3578.0,2.79485]
[1732873607663,0.26208248,3578.4,3578.1,3.56726]
[1732873607862,0.26208248,3578.3,3578.2,2.7947]
[1732873608804,0.26205808,3578.3,3578.1,0.7725]
[1732873608964,0.55,3578.5,3578.1,0.7725]
[1732873609176,0.2620594,3578.4,3578.1,0.7725]
[1732873609470,0.2620594,3578.3,3578.0,2.79485]
[1732873609667,2.79438,3578.7,3578.1,2.79476]
[1732873609869,1.23133765,3578.6,3578.1,2.79476]
[1732873610100,0.68133765,3578.5,3578.1,2.79476]
[1732873610301,0.26205294,3578.4,3578.1,2.79476]
[1732873610501,0.55,3578.6,3578.1,2.79476]
[1732873610502,0.26205294,3578.3,3578.1,2.79476]
[1732873610829,0.55,3578.4,3577.9,3.59913]
[1732873611145,0.55,3578.2,3577.6,2.79512]
[1732873611296,0.55,3578.0,3577.6,2.79512]
[1732873611747,2.79478,3578.1,3577.6,2.79512]
[1732873612038,0.81208067,3578.0,3577.6,2.79516]
[1732873612245,0.55,3578.0,3577.6,2.79516]
[1732873614701,0.55,3578.2,3577.6,5.06692696]
[1732873614898,0.26204937,3578.1,3577.6,5.06694696]
[1732873615097,0.26204937,3578.0,3577.6,6.37842063]
[1732873615344,0.26204582,3577.9,3577.6,7.86205696]
[1732873615540,3.34474,3578.2,3577.6,5.06694696]
[1732873615845,0.55,3578.0,3577.6,5.06694696]
[1732873616019,0.26204615,3577.9,3577.6,5.06694696]
[1732873616208,0.55,3578.1,3577.6,5.06694696]
[1732873616403,0.26204169,3578.0,3577.6,5.06694696]
[1732873616621,0.26204169,3577.9,3577.6,5.06694696]
[1732873616819,2.79485,3578.0,3577.5,2.79522]
[1732873617119,1.06904186,3577.9,3577.5,2.79522]
[1732873617325,0.55,3577.8,3577.5,2.79522]
[1732873617680,0.55,3577.8,3577.3,2.79535]
[1732873618538,0.55,3577.8,3577.4,0.08008523]
[1732873620480,0.26207385,3577.7,3577.4,2.87533523]
[1732873620783,0.55,3577.8,3577.4,2.87533523]
[1732873622997,0.55,3577.8,3577.5,2.79524]
[1732873623404,0.55,3577.8,3577.6,0.07999154]
[1732873623762,0.7705,3578.3,3577.7,4.27870633]
[1732873623963,0.7705,3578.3,3577.8,2.79495]
[1732873624270,0.7705,3578.3,3577.8,2.87484787]
[1732873625265,0.55,3578.2,3577.8,2.87484787]
[1732873626300,0.68122442,3578.1,3577.8,2.87484787]
[1732873626595,0.26200939,3578.1,3577.8,2.87484787]
[1732873626806,0.26200939,3578.1,3577.9,2.79493]
[1732873626964,0.26200939,3578.1,3578.0,3.57325]
[1732873627296,0.43668232,3578.6,3578.0,3.57325]
[1732873627297,0.43668232,3578.6,3578.5,2.79446]
[1732873627464,0.43668232,3578.6,3578.5,5.05959633]
[1732873627865,0.43668232,3578.6,3578.5,5.13916643]
[1732873628107,0.43668232,3578.6,3578.5,5.93253807]
[1732873628318,0.43668232,3579.7,3579.6,2.7936]
[1732873628464,0.43668232,3579.8,3579.7,2.79353]
[1732873629010,0.43668232,3579.8,3579.7,2.8725385]
[1732873629193,0.8115,3580.4,3579.7,1.02049962]
[1732873629194,0.26124446,3580.3,3579.7,1.02049962]
[1732873629508,1.23030797,3580.8,3580.2,1.48363633]
[1732873629805,0.26122583,3580.7,3580.3,2.79304]
[1732873629967,0.26122583,3580.6,3580.3,2.87176785]
[1732873630166,0.26122583,3580.7,3580.3,2.87177785]
[1732873630365,0.26122583,3580.6,3580.4,2.79298]
[1732873630566,0.55,3580.6,3580.3,2.87176785]
[1732873630868,0.55,3580.7,3580.5,0.07863432]
[1732873631067,0.2609066,3580.6,3580.4,0.07868108]
[1732873631302,0.2609066,3580.6,3580.2,4.27671633]
[1732873631504,0.2609066,3580.6,3580.2,1.48363633]
[1732873631712,0.55,3580.7,3580.5,0.07821978]
[1732873631883,0.55,3580.7,3580.2,1.48363633]
[1732873632087,0.55,3580.7,3580.6,0.07817302]
[1732873632405,0.55,3580.7,3580.3,2.793]
[1732873632591,0.55,3580.7,3580.6,0.07817302]
[1732873632794,0.55,3580.7,3580.3,2.793]
[1732873632996,0.55,3580.7,3580.6,0.07817302]
[1732873633968,0.55,3580.7,3580.3,2.793]
[1732873634680,0.55,3580.7,3580.4,0.07826655]
[1732873635016,0.55,3580.7,3580.4,2.87121655]
[1732873636310,0.55,3580.7,3580.5,2.7929]
[1732873636514,0.55,3580.7,3580.5,2.87111978]
[1732873637811,0.55,3580.7,3580.5,0.07821978]
[1732873638274,0.55,3580.7,3580.3,2.793]
[1732873638694,0.55,3580.7,3580.4,2.87075208]
[1732873639812,2.79283,3580.6,3580.4,0.07785208]
[1732873640021,0.55,3580.7,3580.4,0.07785208]
[1732873640201,0.55,3580.7,3580.3,2.793]
[1732873640602,0.55,3580.7,3580.4,0.07784327]
[1732873640999,0.55,3580.7,3580.4,2.87081327]
[1732873641410,0.55,3580.7,3580.4,0.07784327]
[1732873643715,0.55,3580.7,3580.5,0.0777965]
[1732873643934,0.55,3580.7,3580.2,2.79312]
[1732873644133,0.55,3580.7,3580.6,0.07774974]
[1732873644425,0.55,3580.7,3580.2,2.79308]
[1732873644632,0.55,3580.7,3580.3,2.79304]
[1732873644794,0.55,3580.7,3580.3,2.87093004]
[1732873644995,0.55,3580.7,3580.3,0.07789004]
[1732873645408,0.55,3580.7,3580.2,2.79306]
[1732873645709,0.55,3580.7,3580.3,0.07783054]
[1732873645908,3.34275,3580.7,3580.3,0.07783054]
[1732873646232,0.55,3580.7,3580.2,2.79313]
[1732873646536,0.55,3580.7,3580.4,0.07778377]
[1732873646695,0.55,3580.7,3580.3,0.07783054]
[1732873646896,0.55,3580.7,3580.2,2.79313]
[1732873647195,0.55,3580.7,3580.4,0.07778377]
[1732873647960,0.55,3580.7,3580.2,2.79312]
[1732873648255,0.55,3580.7,3580.5,0.077737]
[1732873648453,0.55,3580.7,3580.2,2.79312]
[1732873648661,0.55,3580.7,3580.6,0.07769024]
[1732873649148,0.55,3580.7,3580.6,0.07757266]
[1732873649350,0.55,3580.7,3580.2,2.79312]
[1732873649514,0.55,3580.7,3580.6,0.07757266]
[1732873649714,0.55,3580.7,3580.2,2.79312]
[1732873649949,0.81039754,3580.7,3580.6,0.07757266]
[1732873650247,0.26039754,3580.7,3580.6,0.07757266]
[1732873650454,3.60418,3580.8,3580.3,2.79305]
[1732873651058,0.26042541,3580.7,3580.4,0.07770092]
[1732873652038,2.79276,3580.7,3580.4,0.07770092]
[1732873652550,0.8115,3580.8,3580.2,2.79313]
[1732873652749,3.60419,3580.8,3580.5,0.07767153]
[1732873652961,0.26048435,3580.7,3580.2,2.79313]
[1732873653644,0.26048435,3580.7,3580.3,0.07777532]
[1732873654856,0.26048435,3580.7,3580.4,2.79291]
[1732873655024,0.26074835,3580.7,3580.4,2.79291]
[1732873655246,1.07224835,3580.8,3580.5,0.07767153]
[1732873655424,0.8115,3580.8,3580.5,0.07767153]
[1732873655622,1.07224835,3580.8,3580.5,0.07767153]
[1732873655826,0.8115,3580.8,3580.5,0.07767153]
[1732873656127,1.07224835,3580.8,3580.5,0.07767153]
[1732873656433,0.26074835,3580.7,3580.5,0.07767153]
[1732873656640,0.26074835,3580.6,3580.5,0.07767153]
[1732873657869,0.26074835,3580.6,3580.5,2.87057153]
[1732873658229,0.67794571,3580.6,3580.5,2.87057153]
[1732873658431,0.67794571,3580.6,3580.5,0.07767153]
[1732873660821,0.67794571,3580.6,3580.5,2.87057153]
[1732873665196,0.68104354,3580.6,3580.5,2.87057153]
[1732873665381,0.68104354,3580.6,3580.5,0.07767153]
[1732873665584,0.68104354,3580.6,3579.6,0.8273]
[1732873665585,0.68104354,3580.6,3580.2,2.79308]
[1732873665879,0.68104354,3580.5,3580.2,2.7931]
[1732873666081,0.68104354,3580.4,3580.2,2.7931]
[1732873666281,0.26193982,3580.3,3580.2,2.7931]
[1732873666673,0.26193982,3580.3,3580.2,3.57518829]
[1732873672013,2.79261,3580.9,3580.2,3.57518829]
[1732873672219,3.47368211,3580.8,3580.3,2.79305]
[1732873672609,0.68099211,3580.7,3580.3,2.79305]
[1732873672795,0.68099211,3580.6,3580.3,2.79305]
[1732873672995,2.79269,3580.8,3580.3,2.79305]
[1732873672996,0.68099211,3580.5,3580.3,2.79305]
[1732873673229,0.26192004,3580.4,3580.3,2.79305]
[1732873673923,0.26192004,3580.4,3580.0,1.48422286]
[1732873673924,1.47088899,3580.4,3580.0,2.79329]
[1732873674119,0.26192004,3580.3,3580.0,2.79329]
[1732873674428,0.26192004,3580.2,3580.0,2.79329]
[1732873674581,0.26192004,3580.1,3579.7,2.79345]
[1732873674780,0.7899,3580.4,3579.9,2.79331]
[1732873675026,0.26193402,3580.3,3579.9,2.79331]
[1732873675188,0.26193402,3580.2,3580.0,1.48422286]
[1732873675387,0.7899,3580.4,3580.0,1.48422286]
[1732873675618,0.26192806,3580.3,3580.0,1.48422286]
[1732873675817,0.26192806,3580.2,3580.0,4.27748286]
[1732873676028,0.26192806,3580.1,3580.0,4.27748286]
[1732873676707,0.26192806,3580.1,3580.0,5.05648286]
[1732873676881,0.26192806,3580.1,3580.0,5.87729565]
[1732873678616,0.26192806,3580.1,3580.0,5.95495679]
[1732873679108,3.21191234,3580.6,3580.0,4.355144]
[1732873679445,0.68099242,3580.5,3580.0,4.355144]
[1732873679737,0.26192008,3580.4,3580.0,4.355144]
[1732873679942,2.79321,3580.1,3580.0,0.07766114]
[1732873680242,0.26192008,3580.1,3579.6,2.7936]
[1732873680421,3.60395,3580.5,3580.0,0.07773716]
[1732873680745,0.68099579,3580.4,3580.0,0.07773716]
[1732873680918,0.26192345,3580.3,3580.0,0.07773716]
[1732873681106,0.68099579,3580.2,3580.0,0.07773716]
[1732873681307,3.60395,3580.5,3580.0,0.07773716]
[1732873681506,0.68103123,3580.4,3580.0,2.87102716]
[1732873681733,0.68103123,3580.3,3580.0,0.07773716]
[1732873681900,0.68103123,3580.2,3580.0,2.87098716]
[1732873682100,0.26193504,3580.1,3580.0,2.87098716]
[1732873682347,0.26193504,3580.1,3580.0,4.86954102]
[1732873682852,0.41902343,3580.6,3580.3,2.79301]
[1732873683020,0.68090194,3580.5,3580.3,2.79301]
[1732873683340,0.26187851,3580.4,3580.3,2.79301]
[1732873683908,0.26187851,3580.4,3580.1,2.79315]
[1732873684110,0.26187851,3580.3,3580.1,2.79315]
[1732873684309,0.41902482,3580.6,3580.2,2.79314]
[1732873684547,0.6809187,3580.5,3580.2,2.79314]
[1732873684710,0.6809187,3580.5,3580.2,2.79312]
[1732873685041,0.26189388,3580.4,3580.2,2.79312]
[1732873685363,0.41902433,3580.6,3580.3,2.79305]
[1732873685567,0.68092342,3580.5,3580.3,2.793]
[1732873685727,0.26189362,3580.4,3580.3,2.793]
[1732873685934,0.26189362,3580.4,3580.3,4.98426415]
[1732873686129,0.26189362,3580.4,3580.3,4.27722286]
[1732873690560,0.68092684,3580.4,3580.0,4.27747286]
[1732873690756,0.26189362,3580.3,3580.0,4.27747286]
[1732873690952,2.79285,3580.6,3580.0,4.27747286]
[1732873690953,0.26189362,3580.2,3580.0,4.27747286]
[1732873691264,2.79285,3580.6,3580.0,4.27747286]
[1732873691265,0.26189362,3580.1,3580.0,4.27747286]
[1732873691843,2.79285,3580.6,3580.0,4.27747286]
[1732873692047,0.68092951,3580.5,3580.0,4.27747286]
[1732873692261,0.68092196,3580.4,3580.0,1.48422286]
[1732873692467,0.7715,3580.2,3579.7,2.79347]
[1732873692765,0.68092196,3580.1,3579.6,2.79357]
[1732873693006,0.68092196,3580.0,3579.6,2.79357]
[1732873693171,0.26189306,3579.9,3579.3,4.27803286]
[1732873693498,0.26189306,3579.8,3579.3,4.27803286]
[1732873693701,3.21242337,3580.0,3579.4,0.07063015]
[1732873693854,4.50074584,3579.9,3579.4,0.07063015]
[1732873694060,0.2618405,3579.8,3579.4,0.07063015]
[1732873694282,0.2618405,3579.7,3579.4,0.07063015]
[1732873694600,3.56119,3579.9,3579.4,0.07063015]
[1732873694798,0.26178572,3579.8,3579.4,0.07063015]
[1732873694961,3.56119,3579.9,3579.4,2.86438015]
[1732873695280,0.26178482,3579.8,3579.4,0.07063015]
[1732873695591,3.56119,3579.9,3579.4,0.07063015]
[1732873695807,0.26174712,3579.8,3579.4,0.07063015]
[1732873695962,0.26174712,3579.7,3579.4,0.07063015]
[1732873696166,0.26174534,3579.6,3579.4,0.07063015]
[1732873696359,2.79351,3579.8,3579.1,2.79397]
[1732873696360,2.79353,3579.7,3579.1,2.79397]
[1732873696592,0.26168592,3579.6,3579.2,0.0706492]
[1732873696795,2.79353,3579.7,3579.2,0.0706492]
[1732873697001,0.26168764,3579.6,3579.2,0.0706492]
[1732873697183,2.79353,3579.7,3579.2,0.0706492]
[1732873697384,0.2616247,3579.6,3579.2,0.0706492]
[1732873697570,3.62601,3579.6,3579.0,1.48422286]
[1732873697771,2.79369,3579.5,3579.1,0.070696]
[1732873698418,0.26156985,3579.4,3579.1,0.070696]
[1732873698708,2.79392,3579.2,3579.1,0.070696]
[1732873698913,5.07992362,3579.2,3579.1,0.070696]
[1732873699221,0.8324,3578.6,3578.1,5.10157286]
[1732873699366,3.62678,3578.6,3578.2,0.06875567]
[1732873699570,2.79449,3578.5,3578.2,0.06875567]
[1732873699774,0.8324,3578.6,3578.2,0.06875567]
[1732873699972,2.79459,3578.4,3577.8,4.27922286]
[1732873700169,2.79459,3578.4,3577.8,4.27923286]
[1732873700408,2.79459,3578.4,3577.9,0.06922533]
[1732873701007,2.79471,3578.2,3577.9,0.06922533]
[1732873701174,0.8264,3578.1,3577.0,2.81678587]
[1732873701374,2.79494,3577.9,3577.1,0.0696]
[1732873701676,2.79494,3577.9,3577.2,2.79544]
[1732873702100,2.79494,3577.9,3577.3,0.06950632]
[1732873702623,2.79494,3577.9,3577.3,2.86490632]
[1732873703319,0.8264,3578.1,3577.3,2.86490632]
[1732873703533,3.62118,3578.1,3577.4,2.79529]
[1732873703677,2.79486,3578.0,3577.3,0.06950632]
[1732873703883,2.79497,3577.9,3577.5,0.06947343]
[1732873704215,2.79497,3577.9,3577.6,0.0694266]
[1732873704413,0.8264,3578.1,3577.0,6.92704892]
[1732873704575,0.8264,3578.1,3577.1,0.06974765]
[1732873704576,2.79522,3577.6,3577.1,0.06974765]
[1732873704783,0.7982,3577.5,3577.1,0.06974765]
[1732873705139,3.59345,3577.5,3576.9,2.79569]
[1732873705416,2.79533,3577.4,3576.8,2.79572]
[1732873705576,0.7982,3577.5,3576.9,0.06818101]
[1732873705781,2.7954,3577.3,3576.9,0.06818101]
[1732873706092,2.7954,3577.3,3576.7,3.58386]
[1732873706287,0.7982,3577.5,3577.0,0.06543368]
[1732873706486,0.7982,3577.5,3577.1,2.79554]
[1732873706687,0.7982,3577.5,3577.2,2.79542]
[1732873706989,0.7982,3577.5,3577.3,0.06529314]
[1732873708008,0.7982,3577.5,3577.0,2.79559]
[1732873708212,0.7982,3577.5,3577.2,2.79548]
[1732873708517,0.7982,3577.5,3577.3,0.06529314]
[1732873709025,3.59347,3577.5,3576.8,2.79577]
[1732873709220,3.59347,3577.5,3576.9,2.86117053]
[1732873709723,3.59347,3577.5,3577.0,2.79563]
[1732873709891,0.7982,3577.5,3577.0,2.79563]
[1732873710238,0.7982,3577.5,3577.1,0.06538683]
[1732873712902,0.7982,3577.5,3577.1,2.86092683]
[1732873713630,2.79507,3577.8,3577.3,2.7954]
[1732873713631,0.7624,3577.8,3577.3,2.7954]
[1732873713930,0.7838,3578.2,3577.5,2.79524]
[1732873714148,0.7838,3578.2,3577.7,2.79504]
[1732873714431,0.7838,3578.2,3577.8,0.06505884]
[1732873714833,0.7838,3578.2,3577.8,2.86001884]
[1732873715694,3.58249,3578.5,3577.9,2.79488]
[1732873716034,3.58249,3578.5,3578.0,0.06498257]
[1732873716241,2.79462,3578.3,3578.0,0.06498257]
[1732873716409,2.79462,3578.3,3577.7,2.79508]
[1732873716587,2.79462,3578.3,3577.8,2.86004145]
[1732873716790,3.58249,3578.5,3577.8,2.86004145]
[1732873717130,2.79464,3578.3,3577.8,0.06504145]
[1732873717432,2.79464,3578.3,3577.0,2.7956]
[1732873717433,2.79557,3577.1,3576.6,0.00751444]
[1732873717726,2.79578,3576.9,3576.7,0.06562625]
[1732873718293,2.79557,3577.1,3576.7,0.06562625]
[1732873719025,2.79575,3576.9,3576.7,0.06562625]
[1732873719232,2.79576,3576.9,3576.7,0.06562625]
[1732873720627,0.641962,3576.9,3576.7,0.06562625]
[1732873720832,0.8283,3577.2,3576.7,0.06562625]
[1732873720833,2.79579,3576.8,3576.7,0.06562625]
[1732873721397,2.79579,3576.8,3576.6,0.00751444]
[1732873721896,30.0,3576.9,3576.6,0.00751444]
[1732873723012,2.7958,3576.8,3576.6,0.00751444]
[1732873724131,30.0,3576.9,3576.6,0.00751444]
[1732873724449,32.79571,3576.9,3576.6,0.00751444]
[1732873727232,32.79571,3576.9,3576.7,0.06519403]
[1732873727410,0.26085553,3576.8,3576.7,0.06519403]
[1732873727600,3.05664553,3576.8,3576.7,0.06519403]
[1732873728595,0.26085553,3576.8,3576.7,0.06519403]
[1732873728798,0.26085553,3576.8,3576.6,0.00751444]
[1732873729036,0.26085553,3576.7,3576.6,0.00751444]
[1732873729240,0.26085553,3576.7,3576.6,0.07275531]
[1732873729442,0.26085553,3576.7,3576.6,0.00751444]
[1732873729745,0.26085553,3576.7,3576.6,0.07280461]
[1732873730038,0.26085553,3576.7,3576.6,0.07286868]
[1732873730401,0.26085553,3576.7,3576.6,0.00751444]
[1732873730598,0.26085553,3576.7,3576.6,0.07304954]
[1732873731399,0.26085553,3576.7,3576.6,3.94441349]
[1732873731606,30.0,3576.9,3576.6,3.94441349]
[1732873731915,30.0,3576.9,3576.8,2.79579]
[1732873732118,30.26120991,3576.9,3576.8,2.79579]
[1732873732599,30.0,3576.9,3576.8,2.86152191]
[1732873733444,30.0,3576.9,3576.8,3.551868]
[1732873738904,30.0,3576.9,3576.8,4.324068]
[1732873739304,30.0,3576.9,3576.8,7.324068]
[1732873744656,30.0,3576.9,3576.8,7.89693554]
[1732873749518,22.4435602,3576.9,3576.8,10.97108587]
[1732873749797,22.1985602,3576.9,3576.8,8.03484138]
[1732873750176,22.1985602,3576.9,3576.8,14.04899171]
[1732873750376,15.2092602,3576.9,3576.8,10.97484138]
[1732873751401,12.4135402,3576.9,3576.8,10.97484138]
[1732873751566,8.1676448,3576.9,3576.8,10.97484138]
[1732873752205,8.1676448,3576.9,3576.8,13.94668632]
[1732873752508,6.7697848,3576.9,3576.8,13.94668632]
[1732873755093,5.3719248,3576.9,3576.8,13.94668632]
[1732873757709,3.9740648,3576.9,3576.8,13.94668632]
[1732873758017,2.5762048,3576.9,3576.8,13.94668632]
[1732873758497,0.7893,3578.2,3578.1,2.79477]
[1732873758802,0.7893,3578.2,3578.1,4.34517958]
[1732873770892,0.7893,3578.2,3578.1,2.85925711]
[1732873771092,1.05108243,3578.2,3578.1,0.06448711]
[1732873771295,0.7893,3578.2,3577.9,2.79493]
[1732873771603,1.05108632,3578.2,3578.0,0.06449875]
[1732873771814,1.47000398,3578.2,3578.0,0.06449875]
[1732873771985,0.7893,3578.2,3578.0,0.06449875]
[1732873772830,0.7893,3578.2,3578.0,4.34523122]
[1732873773702,0.26185104,3578.1,3578.0,4.34523122]
[1732873776423,0.26185104,3578.1,3578.0,4.34527122]
[1732873776990,0.26185104,3578.1,3578.0,1.55042122]
[1732873777829,0.26185104,3578.1,3578.0,4.34527122]
[1732873780950,0.261963,3578.1,3578.0,4.34527122]
[1732873781097,30.261963,3578.1,3578.0,4.34527122]
[1732873785237,30.261963,3578.1,3578.0,1.55042122]
[1732873785432,30.261963,3578.1,3578.0,0.06449875]
[1732873785613,30.261963,3578.1,3577.8,1.48592247]
[1732873785812,30.261963,3578.1,3578.0,0.06238051]
[1732873785813,33.61487,3578.1,3578.0,0.06238051]
[1732873786008,31.50134879,3578.1,3577.9,0.06242733]
[1732873786213,0.26201869,3578.0,3577.9,1.48592247]
[1732873786619,0.26201869,3578.0,3577.9,1.54622234]
[1732873787468,0.26201869,3578.0,3577.9,0.06029987]
[1732873788268,0.26203096,3578.0,3577.9,0.06029987]
[1732873789066,0.26203096,3578.0,3577.9,2.85522987]
[1732873789237,0.26201114,3578.0,3577.9,2.85522987]
[1732873790430,0.26200846,3578.0,3577.9,5.65009987]
[1732873790852,30.8201,3578.1,3577.9,5.65009987]
[1732873790853,30.0,3578.1,3578.0,2.79485]
[1732873791052,30.26200421,3578.1,3578.0,2.85510305]
[1732873792479,30.0,3578.1,3578.0,2.85510305]
[1732873793054,30.0,3578.1,3578.0,0.06025305]
[1732873794678,30.26202941,3578.1,3578.0,0.06025305]
[1732873795166,30.26202941,3578.1,3578.0,2.85510305]
[1732873796477,30.26204025,3578.1,3578.0,2.85510305]
[1732873797180,30.26204025,3578.1,3578.0,0.06025305]
[1732873798481,30.26204025,3578.1,3578.0,2.85510305]
[1732873798842,30.26204025,3578.1,3578.0,2.79485]
[1732873799139,30.26204025,3578.1,3578.0,2.85308726]
[1732873800041,30.26210024,3578.1,3578.0,2.85308726]
[1732873800242,30.26210024,3578.1,3578.0,0.05823726]
[1732873800443,30.26212972,3578.1,3578.0,2.85308726]
[1732873801640,30.68158134,3578.1,3578.0,0.05823726]
[1732873802078,30.68158134,3578.1,3577.5,0.7706]
[1732873802079,0.7831,3578.0,3577.5,2.79519]
[1732873802260,0.8305,3577.6,3577.1,2.79555]
[1732873802670,0.26214759,3577.5,3577.3,2.7954]
[1732873802858,0.8305,3577.6,3577.3,2.7954]
[1732873803259,0.8305,3577.6,3577.2,2.79548]
[1732873803461,0.8305,3577.6,3577.3,2.79534]
[1732873803661,0.8305,3577.6,3577.2,2.79546]
[1732873804166,0.26204872,3577.5,3577.2,4.28138247]
[1732873804464,0.8305,3577.6,3577.2,4.28138247]
[1732873804667,0.26196695,3577.5,3577.2,4.28138247]
[1732873804869,0.8305,3577.6,3577.0,1.48592247]
[1732873805065,0.26196628,3577.5,3577.0,1.48592247]
[1732873805251,3.62572,3577.6,3577.1,2.79555]
[1732873805453,0.26188125,3577.5,3577.1,2.79555]
[1732873805655,0.8305,3577.6,3577.1,2.79555]
[1732873805858,0.26187735,3577.5,3577.2,2.79546]
[1732873806061,0.26187735,3577.4,3577.0,1.99000172]
[1732873806289,0.8305,3577.6,3577.1,2.79554]
[1732873806595,0.26181248,3577.5,3577.1,5.59104]
[1732873806790,0.8305,3577.6,3577.1,3.62952417]
[1732873806997,2.79534,3577.4,3577.0,1.99000172]
[1732873807158,0.818,3577.3,3577.0,0.50407925]
[1732873807492,0.818,3577.3,3576.9,2.79568]
[1732873808597,0.818,3577.3,3577.0,1.48592247]
[1732873808802,3.05685248,3577.6,3577.1,2.79551]
[1732873808957,1.08218248,3577.5,3577.1,2.79551]
[1732873809153,0.8205,3577.5,3577.1,2.79551]
[1732873809898,0.8215,3577.9,3577.4,1.48592247]
[1732873810069,0.26162322,3577.8,3577.6,1.48592247]
[1732873810469,0.26162322,3577.8,3577.5,2.79519]
[1732873810470,0.8215,3577.9,3577.7,0.05674497]
[1732873810677,0.26161232,3577.8,3577.7,0.05674497]